Cogmind - Beta 14 @@@ ROGUE MODE // 2024.11.14 @ 22:47:00 Player: BEEEEES Result: Self-destructed Performance ------------- Evolutions (1) 500 Regions Visited (2) 400 Robots Destroyed (12) 60 Value Destroyed (386) 386 Prototype IDs (0) 0 Alien Tech Used (0) 0 Bonus (0) 0 TOTAL SCORE: 1346 Bonus ------- None Cogmind --------- Core Integrity 2/400 Matter 187/300 Energy 100/100 System Corruption 0% Temperature Cool (0) Movement Core (100) Ox1 Location -9/Materials Parts ------- > --- POWER (1) -------- (None) > --- PROPULSION (2) --- (None) > --- UTILITY (2) ------ Small Storage Unit Targeting Computer > --- WEAPON (4) ------- (None) > --- INVENTORY (8) ---- Compact Wheel Medium Storage Unit Sensor Array Hardened Medium Armor Plating Improved Grenade Launcher Improved Grenade Launcher Peak State ------------ > --- POWER ------------ Light Deuterium Engine > --- PROPULSION ------- Aluminum Leg Improved Aluminum Leg > --- UTILITY ---------- Small Storage Unit Targeting Computer > --- WEAPON ----------- Assault Rifle Assault Rifle Light Assault Rifle > --- INVENTORY -------- Light Deuterium Engine Aluminum Leg Aluminum Leg Compact Wheel Sensor Array Hardened Medium Armor Plating Improved Grenade Launcher Improved Grenade Launcher [Rating: 12] Favorites ----------- Power Light Deuterium Engine Engine Light Deuterium Engine Propulsion Aluminum Leg Leg Aluminum Leg Utility Small Storage Unit Storage Small Storage Unit Processor Targeting Computer Weapon Assault Rifle Ballistic Gun Assault Rifle Launcher Improved Grenade Launcher Build | -11 -10 -9 ------- Run | Yrd Mat Mat Slots Evolved 2 | . . 2 Power . | . . . Propulsion . | . . . Utility . | . . . Weapon 2 | . . 2 Parts Attached 19 | 7 2 10 Power 3 | 1 . 2 Engine 3 | 1 . 2 Core . | . . . Reactor . | . . . Propulsion 8 | 2 1 5 Treads . | . . . Leg 8 | 2 1 5 Wheel . | . . . Hover . | . . . Flight . | . . . Utility 2 | 1 1 . Device . | . . . Storage 1 | 1 . . Processor 1 | . 1 . Hackware . | . . . Protection . | . . . Artifact . | . . . Weapon 6 | 3 . 3 Energy Gun . | . . . Energy Cannon . | . . . Ballistic Gun 4 | 3 . 1 Ballistic Cannon . | . . . Launcher 2 | . . 2 Special Weapon . | . . . Impact Weapon . | . . . Slashing Weapon . | . . . Piercing Weapon . | . . . Special Melee Weapon . | . . . Unidentified Prototypes . | . . . Parts Lost 11 | . . 11 Power 2 | . . 2 Propulsion 4 | . . 4 Utility . | . . . Weapon 5 | . . 5 Highest Loss Streak 5 | . . 5 To Critical Strikes . | . . . Average Slot Usage (%) 83 | . 97 79 Engine 9 | . 14 8 Leg 23 | . 28 21 Storage 11 | . 14 11 Processor 11 | . 11 11 Ballistic Gun 25 | . 28 24 Launcher 2 | . . 2 Peak Build Rating 12 | 6 7 12 Average Rating 8 | 5 6 10 On Entrance 4 | . 6 7 Naked Turns . | . . . Heaviest Build 17 | 12 12 17 Greatest Support 23 | 20 20 23 Greatest Overweight (x) 2 | 2 . . Average Overweight (x) . | . . . Largest Inventory Capacity 8 | 8 8 8 Average Capacity 7 | 7 8 8 Most Carried 8 | 4 7 8 Average Carried 5 | 1 5 6 Final Capacity 8 | 8 8 8 Final Carried 7 | 4 7 6 Class Distribution -------------------- 61% | Mutant 38% | Gunner Dominant Class ---------------- Mutant | -10/Materials Gunner | -9/Materials Resources | -11 -10 -9 ----------- Run | Yrd Mat Mat Matter Collected 561 | 166 129 266 Remotely . | . . . Salvage Created 310 | . 40 270 Parts 17 | . 2 15 Haulers Intercepted . | . . . Recyclers Shooed . | . . . Parts Field Recycled . | . . . Retrieved Matter . | . . . Parts Self-Destructed . | . . . Prevented . | . . . Kills | -11 -10 -9 ------- Run | Yrd Mat Mat Combat Hostiles Destroyed 9 | . 1 8 Guns 7 | . 1 6 AOE 2 | . . 2 Classes Destroyed 6 | . 1 5 Worker 1 | . . 1 Builder 1 | . . 1 Watcher 1 | . . 1 Grunt 6 | . 1 5 Duelist 1 | . . 1 Sentry 2 | . . 2 Best Kill Streak 3 | . 1 3 Combat Bots Only 3 | . 1 3 Max Kills in Single Turn 1 | . 1 1 Gunslinging . | . . . Exploded 1 | . . 1 Melee . | . . . Uniques/NPCs Destroyed . | . . . Combat | -11 -10 -9 -------- Run | Yrd Mat Mat Hostile Shots Fired 121 | . 31 90 Missed 42 | . 11 31 Damage Taken 1538 | . 278 1260 Core 447 | . 49 398 Absorbed by Shields . | . . . Core Remaining (%) 90 | 100 80 . Volleys Fired 56 | . 9 47 Largest 3 | . 2 3 Hottest 60 | . 40 60 Shots Fired 101 | . 18 83 Gun 90 | . 18 72 Cannon . | . . . Launcher 11 | . . 11 Special . | . . . Kinetic 90 | . 18 72 Thermal . | . . . Explosive 11 | . . 11 Electromagnetic . | . . . Robot Hit Streak 12 | . 5 12 Robot Miss Streak 2 | . 1 2 Penetration Max . | . . . Secondary Targets 1 | . . 1 Max Gunslinging Chain 1 | . . 1 Shots Hit Robots 72 | . 13 59 Core Hits 28 | . 4 24 Critical Kills . | . . . Critical Parts Destroyed 1 | . . 1 Critical Strikes 1 | . . 1 Destroy 1 | . . 1 Melee Attacks . | . . . Impact . | . . . Slashing . | . . . Piercing . | . . . Sneak Attacks . | . . . Combat Hostiles . | . . . Follow-up Attacks . | . . . Damage Inflicted 1096 | . 186 910 Guns 667 | . 186 481 Cannons . | . . . Explosions 429 | . . 429 Melee . | . . . Ramming . | . . . Kinetic 667 | . 186 481 Thermal . | . . . Explosive 429 | . . 429 Electromagnetic . | . . . Impact . | . . . Slashing . | . . . Piercing . | . . . Highest Corruption . | . . . Average Corruption . | . . . Corruption Purged . | . . . Corruption Blocked . | . . . Overload Shots . | . . . Overflow Damage 22 | . . 22 Projectiles . | . . . Explosions 22 | . . 22 Melee . | . . . Knockbacks . | . . . Impact . | . . . Kinetic . | . . . Secondary . | . . . Self-Inflicted Damage 313 | . . 313 Shots 6 | . . 6 Rammed . | . . . Targets Rammed . | . . . Kicked . | . . . Crushed . | . . . Highest Temperature 32 | . 32 28 Average Temperature 8 | . 11 7 Received Heat Transfer 492 | . 150 342 Siege Activations . | . . . Robots Corrupted . | . . . Combat Hostiles . | . . . Parts Fried . | . . . Impact Corruptions . | . . . Robots Melted . | . . . Combat Hostiles . | . . . Parts Melted . | . . . Heat Transferred . | . . . Parts Sabotaged . | . . . Parts Stolen . | . . . Parts Stripped . | . . . Power Chain Reactions . | . . . Alert | -11 -10 -9 ------- Run | Yrd Mat Mat Peak Influence 280 | . 35 280 Initial 14 | . . 14 Average 113 | . 23 158 Maximum Alert Level 1 | . . 1 Low Security (%) 77 | 100 100 66 Level 1 22 | . . 33 Level 2 . | . . . Level 3 . | . . . Level 4 . | . . . Level 5 . | . . . High Security . | . . . Max Security . | . . . Squads Dispatched 3 | . 2 1 Investigation . | . . . Extermination . | . . . Reinforcement 3 | . 2 1 Assault . | . . . Garrison . | . . . Intercept . | . . . Searches Triggered . | . . . Construction Impeded . | . . . Haulers Reinforced . | . . . Active Scanning Responses . | . . . Cargo Convoy Interrupts . | . . . Stealth | -11 -10 -9 --------- Run | Yrd Mat Mat Distress Signals 1 | . 1 . Communications Jammed . | . . . Distress Signals . | . . . Times Spotted 20 | . 7 13 Peak Tracking Total 5 | . 4 5 Tactical Retreats 3 | . . 3 Traps | -11 -10 -9 ------- Run | Yrd Mat Mat Traps Triggered . | . . . Indirectly . | . . . Trap Hack Attempts . | . . . Triggered . | . . . Disarmed . | . . . Reprogrammed . | . . . Reused . | . . . Traps Extracted . | . . . Installed . | . . . Triggered . | . . . Machines | -11 -10 -9 ---------- Run | Yrd Mat Mat Machines Disabled 1 | . . 1 Max in Single Turn 1 | . . 1 Machines Repaired . | . . . Machines Dismantled . | . . . Machines Sabotaged . | . . . Overloaded Fab Kills . | . . . Hacking | -11 -10 -9 --------- Run | Yrd Mat Mat Machines Accessed . | . . . Terminals . | . . . Fabricators . | . . . Repair Stations . | . . . Recycling Units . | . . . Scanalyzers . | . . . Garrison Access . | . . . Total Hacks . | . . . Successful . | . . . Failed . | . . . Catastrophic . | . . . Database Lockouts . | . . . Manual . | . . . Terminals . | . . . Fabricators . | . . . Repair Stations . | . . . Recycling Units . | . . . Scanalyzers . | . . . Garrison Access . | . . . Terminal Hacks . | . . . Fabricator Hacks . | . . . Repair Station Hacks . | . . . Recycling Unit Hacks . | . . . Scanalyzer . | . . . Garrison Access Hacks . | . . . Unauthorized Hacks . | . . . Terminals . | . . . Fabricators . | . . . Repair Stations . | . . . Recycling Units . | . . . Scanalyzers . | . . . Garrison Access . | . . . Data Cores Recovered . | . . . Used . | . . . Hacking Detections . | . . . Full Trace Events . | . . . Feedback Events . | . . . Feedback Blocked . | . . . Robot Schematics Acquired . | . . . Robots Built . | . . . Authchips . | . . . Time . | . . . Total Robot Build Rating . | . . . Part Schematics Acquired . | . . . Parts Built . | . . . Authchips . | . . . Time . | . . . Total Part Build Rating . | . . . Parts Repaired . | . . . Time . | . . . Parts Recycled . | . . . Recycled Matter . | . . . Retrieved Matter . | . . . Retrieved Components . | . . . Parts Scanalyzed . | . . . Part Schematics Acquired . | . . . Parts Damaged . | . . . Bothacking | -11 -10 -9 ------------ Run | Yrd Mat Mat Used RIF Installer . | . . . Robots Hacked . | . . . Non-combat . | . . . Combat . | . . . Robot Hacks Applied . | . . . Relay Couplers Released . | . . . Fabnet Peak Effective % . | . . . Robots Rewired . | . . . Allies Hacked . | . . . Hacks Repelled . | . . . Allies | -11 -10 -9 -------- Run | Yrd Mat Mat Total Allies . | . . . Largest Group . | . . . Highest-Rated Group . | . . . Highest-Rated Ally . | . . . Total Orders . | . . . Ally Attacks . | . . . Total Damage . | . . . Kills . | . . . Allies Corrupted . | . . . Allies Melted . | . . . Intel | -11 -10 -9 ------- Run | Yrd Mat Mat Robot Analysis Total . | . . . Derelict Logs Recovered . | . . . Drone Launches . | . . . Drone Recoveries . | . . . Exploration | -11 -10 -9 ------------- Run | Yrd Mat Mat Turns Passed 596 | 69 116 411 Spaces Moved 301 | 45 69 187 Core 4 | 4 . . Treads . | . . . Legs 297 | 41 69 187 Wheels . | . . . Hover . | . . . Flight . | . . . Fastest Speed 50 | 50 120 120 Average Speed 120 | 124 120 120 Slowest Speed 190 | 190 120 120 Overloaded Moves . | . . . Propulsion Burnouts . | . . . Robots Hopped . | . . . Cave-ins Triggered . | . . . Exploration Rate (%) 9 | 5 16 7 Regions Visited 2 Branch Regions . Pre-discovered Areas . | . . . Known Exits Taken . | . . . Unknown Exits Taken 2 | 1 1 . Scrap Searched . | . . . Spaces Dug . | . . . Terrain Destroyed 110 | . . 110 Melee . | . . . Projectile . | . . . AOE 110 | . . 110 Terrain Rammed . | . . . Walls Destroyed . | . . . Machines Disabled . | . . . Actions | -11 -10 -9 --------- Run | Yrd Mat Mat Total 450 | 54 83 313 Wait 50 | . . 50 Move 299 | 44 68 187 Hop . | . . . Pick Up 16 | 3 3 10 Fast Attach 7 | 6 1 . Attach 6 | . . 6 Detach . | . . . Swap 6 | 1 1 4 Drop 10 | . 1 9 Fire 56 | . 9 47 Melee . | . . . Ram . | . . . Kick . | . . . Crush . | . . . Escape Stasis . | . . . Rewire . | . . . Trap . | . . . Miscellaneous . | . . . Route ------- -11/Scrapyard -10/Materials -9/Materials History --------- Turn | Location | Event 6 | -11/Scrapyard | Discovered new exit (range 16) 70 | -11/Scrapyard | Entered Materials 181 | -10/Materials | Discovered new exit (range 5) 186 | -10/Materials | Entered another Materials area 186 | -9/Materials | Evolved 2 slots: Weapon x2 503 | -9/Materials | Lost 5 parts (1p2n2w) 588 | -9/Materials | Core integrity fell below 50% 596 | -9/Materials | Core integrity fell below 20% 597 | -9/Materials | Self-destructed Last Messages --------------- Acquired 3 matter. Acquired Imp. Grenade Launcher. U-05 Engineer builds a Wall. K-01 Serf collects debris. Lgt. Assault Rifle destroyed. U-05 Engineer lays Concrete. K-01 Serf collects debris. U-05 Engineer builds a Wall. Destroyed Heat Sink. K-01 Serf collects debris. U-05 Engineer destroyed. The unstable cave ceiling collapses. Aluminum Leg destroyed. Destroyed Aluminum Leg. Aluminum Leg destroyed. K-01 Serf destroyed. Nuclear Reactor explodes. Imp. Grenade Launcher destroyed. Destroyed Imp. Grenade Launcher. Y-45 Defender destroyed. Map ----- +----------------------------------------------------+ | | | | | | | | | | | | | | | | | | | | | | | | | | | ????????????????????????????????##???????????????? | | ???????????????????????????????## ?????#????????? | | ??????????????????????????###??? ??# # #???????? | | ?????????????????????######T#### ## ####?????? | | ?????????????????????# ! | | ???########??????????# ########## # ## ##??????? | | ???# #??????????# ###?????# # ! #????????? | | ???# #??????????# # #####??? ! #????????? | | ???# #??######### # ###??# !#?????????? | | ???# = #??#! # ##### !#?????????? | | ???# == #??#!! ** #?????????? | | ???# ! #??# ##### !##?????????? | | ??####+####### @ #??####??????????? | | ??# == r #????????????????? | | ??# #????????????????? | | ??# #????????????????? | | ??################## ##????????????????? | | ???????????????????### #?????????????????? | | ?????????????????????# # # ####?????????????????? | | ?????????????????????# ## ###????????????????????? | | ?????????????????????#+## #??????????????????????? | | ?????????????????????? ?? ???????????????????????? | | ????????????????????????? ???????????????????????? | | ????????????????????????? ???????????????????????? | | ????????????????????????? ???????????????????????? | | ????????????????????????? ???????????????????????? | | ????????????????????????? ???????????????????????? | | ????????????????????????? ???????????????????????? | | ?????????????????????????????????????????????????? | | ?????????????????????????????????????????????????? | | ?????????????????????????????????????????????????? | | ?????????????????????????????????????????????????? | | ?????????????????????????????????????????????????? | | ?????????????????????????????????????????????????? | | ?????????????????????????????????????????????????? | | ?????????????????????????????????????????????????? | | ?????????????????????????????????????????????????? | +----------------------------------------------------+ Best States ------------- Heat Dissipation 28 Energy Generation 14 Energy Capacity 140 Matter Stores 300 Matter Capacity 300 Sight Range 16 Terrain Scan Density 10 Evasion (%) 55 Targeting Accuracy 5 Item Schematics ----------------- None Robot Schematics ------------------ None Fabricated ------------ Nothing Alien Tech Used ----------------- None Achievements -------------- None Challenges ------------ None Game ------ Seed PlatingRiotDeconstructor Manual? 0 Play Time 00:10:42 Cumulative 6.0 hours Start 2024.11.14 @ 22:36:43 End 2024.11.14 @ 22:47:00 Sessions 1 Manual Loads 0 Difficulty Rogue Special Mode None Game No. 13 Rogue 10 Adventurer 3 Explorer 0 Win Type - Total 0 Types 0/0/0/0/0/0/0/0/0 Lore% 3 Gallery% 11 Achievement% 10 Wizard Run 0 Options --------- Layout 1 ASCII 0 Keyboard 0 Movement Mouse Keybinds 0 Fullscreen 1 Font 48/Terminus Map View 50x35 Zoom Use 0% Tactical HUD 0 Map Filters NONE Filters NONE Steam 1 RUN: 4aeca8ab-ebbd-429e-ae6f-13138f587079